[Event "Live Chess"]
[Site "Chess.com"]
[Date "2024.06.02"]
[Round "-"]
[White "Andriy_Yaremovych"]
[Black "gunslinger222"]
[Result "0-1"]
[WhiteElo "1606"]
[BlackElo "2262"]
[TimeControl "300"]
[EndTime "4:28:26 PDT"]
[Termination "gunslinger222 won by resignation"]

1. e4 {[%clk 0:04:59.3]} 1... e6 {[%clk 0:04:59]} 2. Nc3 {[%clk 0:04:59.2]} 2...
d5 {[%clk 0:04:58.1]} 3. f4 {[%clk 0:04:58.4]} 3... d4 {[%clk 0:04:56.8]} 4.
Nce2 {[%clk 0:04:56.4]} 4... c5 {[%clk 0:04:55.3]} 5. Nf3 {[%clk 0:04:55.1]}
5... Nc6 {[%clk 0:04:54.6]} 6. d3 {[%clk 0:04:52.7]} 6... f5 {[%clk 0:04:53.7]}
7. e5 {[%clk 0:04:50.5]} 7... Nge7 {[%clk 0:04:52.3]} 8. Nh4 {[%clk 0:04:46.5]}
8... Nd5 {[%clk 0:04:50.3]} 9. g3 {[%clk 0:04:40.5]} 9... b6 {[%clk 0:04:45.1]}
10. Bg2 {[%clk 0:04:39.3]} 10... Bb7 {[%clk 0:04:44.7]} 11. O-O {[%clk
0:04:36.2]} 11... Be7 {[%clk 0:04:42.8]} 12. Nf3 {[%clk 0:04:33.1]} 12... h6
{[%clk 0:04:42]} 13. Bd2 {[%clk 0:04:30.8]} 13... g5 {[%clk 0:04:40.9]} 14. c4
{[%clk 0:04:28.4]} 14... dxc3 {[%clk 0:04:35.7]} 15. bxc3 {[%clk 0:04:24.8]}
15... g4 {[%clk 0:04:33.2]} 16. Ne1 {[%clk 0:04:22]} 16... h5 {[%clk 0:04:30.5]}
17. Qb3 {[%clk 0:04:16.3]} 17... Na5 {[%clk 0:04:27]} 18. Qa4+ {[%clk 0:04:12]}
18... Bc6 {[%clk 0:04:25.3]} 19. Qa3 {[%clk 0:04:10.6]} 19... c4 {[%clk
0:04:23.3]} 0-1

[Event "Live Chess"]
[Site "Chess.com"]
[Date "2024.06.02"]
[Round "-"]
[White "Victor_Bondar"]
[Black "Grace6363"]
[Result "1-0"]
[WhiteElo "1461"]
[BlackElo "1151"]
[TimeControl "300"]
[EndTime "4:28:31 PDT"]
[Termination "Victor_Bondar won by resignation"]

1. e4 {[%clk 0:04:57.3]} 1... c5 {[%clk 0:04:58.8]} 2. c3 {[%clk 0:04:55.6]}
2... d5 {[%clk 0:04:57.6]} 3. e5 {[%clk 0:04:53.9]} 3... Nc6 {[%clk 0:04:56.2]}
4. d4 {[%clk 0:04:52.9]} 4... f6 {[%clk 0:04:52.2]} 5. Bb5 {[%clk 0:04:49.3]}
5... a6 {[%clk 0:04:49.1]} 6. Bxc6+ {[%clk 0:04:48.3]} 6... bxc6 {[%clk
0:04:48.3]} 7. Qe2 {[%clk 0:04:30.2]} 7... c4 {[%clk 0:04:42.8]} 8. e6 {[%clk
0:04:28.2]} 8... f5 {[%clk 0:04:34.6]} 9. Nf3 {[%clk 0:04:25.5]} 9... Nf6 {[%clk
0:04:31]} 10. Ng5 {[%clk 0:04:18.8]} 10... Qa5 {[%clk 0:04:13.9]} 11. Nd2 {[%clk
0:04:07.7]} 11... Bb7 {[%clk 0:04:10.2]} 12. Ndf3 {[%clk 0:04:03.1]} 12... h6
{[%clk 0:04:02.5]} 13. Nf7 {[%clk 0:03:57.3]} 13... Rh7 {[%clk 0:03:57.9]} 14.
Qe5 {[%clk 0:03:40]} 14... g5 {[%clk 0:03:41.7]} 15. Qxf5 {[%clk 0:03:31.2]}
15... Rxf7 {[%clk 0:03:40.2]} 16. exf7+ {[%clk 0:03:26.8]} 16... Kxf7 {[%clk
0:03:38.8]} 17. Ne5+ {[%clk 0:03:20.7]} 17... Ke8 {[%clk 0:03:35.7]} 18. Qg6+
{[%clk 0:03:01.1]} 18... Kd8 {[%clk 0:03:29.4]} 19. O-O {[%clk 0:02:35.6]} 19...
Qc7 {[%clk 0:03:23.3]} 20. f4 {[%clk 0:02:32.3]} 20... Qd6 {[%clk 0:03:14.4]}
21. fxg5 {[%clk 0:02:26.6]} 21... hxg5 {[%clk 0:03:09.2]} 22. Nf7+ {[%clk
0:02:20.2]} 1-0

[Event "Live Chess"]
[Site "Chess.com"]
[Date "2024.06.02"]
[Round "-"]
[White "PureDashingOctopus"]
[Black "LL220284LL"]
[Result "1-0"]
[WhiteElo "2269"]
[BlackElo "2498"]
[TimeControl "300"]
[EndTime "4:28:43 PDT"]
[Termination "PureDashingOctopus won by checkmate"]

1. e4 {[%clk 0:04:56.9]} 1... d6 {[%clk 0:04:57.6]} 2. d4 {[%clk 0:04:55.9]}
2... g6 {[%clk 0:04:56.5]} 3. Nc3 {[%clk 0:04:55.2]} 3... Bg7 {[%clk 0:04:55.8]}
4. Be3 {[%clk 0:04:54.5]} 4... c6 {[%clk 0:04:54.5]} 5. Qd2 {[%clk 0:04:53.6]}
5... Nd7 {[%clk 0:04:52.7]} 6. O-O-O {[%clk 0:04:51.6]} 6... b5 {[%clk
0:04:51.9]} 7. f3 {[%clk 0:04:49.8]} 7... Qa5 {[%clk 0:04:50.6]} 8. Kb1 {[%clk
0:04:47.5]} 8... Rb8 {[%clk 0:04:49.6]} 9. g4 {[%clk 0:04:42]} 9... Ba6 {[%clk
0:04:48.2]} 10. h4 {[%clk 0:04:35.5]} 10... b4 {[%clk 0:04:46.9]} 11. Nce2
{[%clk 0:04:28.7]} 11... Nb6 {[%clk 0:04:40.2]} 12. b3 {[%clk 0:04:23.1]} 12...
h5 {[%clk 0:04:35.2]} 13. gxh5 {[%clk 0:04:21.6]} 13... Qxh5 {[%clk 0:04:25.1]}
14. Nf4 {[%clk 0:04:16.9]} 14... Qa5 {[%clk 0:04:22.8]} 15. Bxa6 {[%clk
0:04:12.8]} 15... Qxa6 {[%clk 0:04:21.2]} 16. Nge2 {[%clk 0:04:05.4]} 16... Nf6
{[%clk 0:04:12.9]} 17. h5 {[%clk 0:04:03.1]} 17... Nxh5 {[%clk 0:04:07.4]} 18.
Nxh5 {[%clk 0:04:01.4]} 18... Rxh5 {[%clk 0:04:07.3]} 19. Rxh5 {[%clk
0:03:59.2]} 19... gxh5 {[%clk 0:04:06.9]} 20. Rg1 {[%clk 0:03:58.3]} 20... Bf8
{[%clk 0:04:02.6]} 21. Nf4 {[%clk 0:03:53.6]} 21... Qa5 {[%clk 0:03:57.5]} 22.
Rh1 {[%clk 0:03:42.3]} 22... Qb5 {[%clk 0:03:38.8]} 23. Qf2 {[%clk 0:03:18.5]}
23... a5 {[%clk 0:03:03.4]} 24. Rxh5 {[%clk 0:03:15.5]} 24... Qa6 {[%clk
0:03:01.5]} 25. Rh8 {[%clk 0:03:06.3]} 25... a4 {[%clk 0:02:53.8]} 26. Qh2
{[%clk 0:02:42.8]} 26... Kd7 {[%clk 0:02:44.2]} 27. Qh3+ {[%clk 0:02:39.6]}
27... Kc7 {[%clk 0:02:42.5]} 28. Qg2 {[%clk 0:01:37.1]} 28... Ra8 {[%clk
0:02:34.2]} 29. Qe2 {[%clk 0:01:24.2]} 29... Qa5 {[%clk 0:02:28.8]} 30. Rh7
{[%clk 0:01:08]} 30... Kb7 {[%clk 0:01:45.1]} 31. Rxf7 {[%clk 0:01:04.1]} 31...
Qg5 {[%clk 0:01:25.8]} 32. Ne6 {[%clk 0:00:58.2]} 32... Qg6 {[%clk 0:01:20.4]}
33. Rxf8 {[%clk 0:00:50.6]} 33... Qxe6 {[%clk 0:01:18.6]} 34. Rxa8 {[%clk
0:00:49.4]} 34... Nxa8 {[%clk 0:01:15.4]} 35. bxa4 {[%clk 0:00:48.2]} 35... Nc7
{[%clk 0:01:10.6]} 36. Bd2 {[%clk 0:00:37.8]} 36... Na6 {[%clk 0:01:05]} 37. d5
{[%clk 0:00:31.4]} 37... cxd5 {[%clk 0:00:54]} 38. Qb5+ {[%clk 0:00:29.7]} 38...
Ka7 {[%clk 0:00:53.2]} 39. Be3+ {[%clk 0:00:27.1]} 39... Nc5 {[%clk 0:00:49.5]}
40. Bxc5+ {[%clk 0:00:26.5]} 40... dxc5 {[%clk 0:00:49.4]} 41. Qxc5+ {[%clk
0:00:26]} 41... Ka6 {[%clk 0:00:45.9]} 42. Qxd5 {[%clk 0:00:23.1]} 42... Qh3
{[%clk 0:00:43.8]} 43. Qb5+ {[%clk 0:00:21.8]} 43... Ka7 {[%clk 0:00:43.1]} 44.
Qxb4 {[%clk 0:00:21.4]} 44... Qf1+ {[%clk 0:00:41.8]} 45. Kb2 {[%clk 0:00:20.2]}
45... Qxf3 {[%clk 0:00:41]} 46. Qxe7+ {[%clk 0:00:19.6]} 46... Ka6 {[%clk
0:00:40.6]} 47. e5 {[%clk 0:00:18.1]} 47... Qe3 {[%clk 0:00:38.1]} 48. Qd6+
{[%clk 0:00:16.5]} 48... Ka5 {[%clk 0:00:35.8]} 49. e6 {[%clk 0:00:16]} 49...
Kxa4 {[%clk 0:00:25.9]} 50. e7 {[%clk 0:00:15]} 50... Qg5 {[%clk 0:00:14.9]} 51.
e8=Q+ {[%clk 0:00:10.6]} 51... Qb5+ {[%clk 0:00:14.4]} 52. Qxb5+ {[%clk
0:00:09.5]} 52... Kxb5 {[%clk 0:00:14.3]} 53. Kb3 {[%clk 0:00:07.5]} 53... Ka5
{[%clk 0:00:13.7]} 54. Qb4+ {[%clk 0:00:05.8]} 54... Ka6 {[%clk 0:00:13]} 55.
Kc4 {[%clk 0:00:05.4]} 55... Ka7 {[%clk 0:00:12.9]} 56. Qb5 {[%clk 0:00:04.7]}
56... Ka8 {[%clk 0:00:12.8]} 57. Kc5 {[%clk 0:00:04.3]} 57... Ka7 {[%clk
0:00:12.7]} 58. Kc6 {[%clk 0:00:04]} 58... Ka8 {[%clk 0:00:12.6]} 59. Qb7#
{[%clk 0:00:03.3]} 1-0

[Event "Live Chess"]
[Site "Chess.com"]
[Date "2024.06.02"]
[Round "-"]
[White "NottheBishopSacrifice"]
[Black "Duke_of_Bebington"]
[Result "1-0"]
[WhiteElo "2316"]
[BlackElo "1636"]
[TimeControl "300"]
[EndTime "4:28:48 PDT"]
[Termination "NottheBishopSacrifice won by resignation"]

1. g3 {[%clk 0:04:58.3]} 1... d5 {[%clk 0:04:58.2]} 2. Bg2 {[%clk 0:04:58.2]}
2... c6 {[%clk 0:04:57.5]} 3. Nf3 {[%clk 0:04:57.8]} 3... Bf5 {[%clk 0:04:56.5]}
4. O-O {[%clk 0:04:57.2]} 4... Nf6 {[%clk 0:04:55.9]} 5. d4 {[%clk 0:04:56.8]}
5... e6 {[%clk 0:04:55.2]} 6. c4 {[%clk 0:04:56.4]} 6... Nbd7 {[%clk 0:04:52.3]}
7. b3 {[%clk 0:04:55.3]} 7... Bd6 {[%clk 0:04:49.6]} 8. Bb2 {[%clk 0:04:54.8]}
8... Bc7 {[%clk 0:04:48.2]} 9. Nbd2 {[%clk 0:04:53.8]} 9... O-O {[%clk
0:04:47.7]} 10. Nh4 {[%clk 0:04:52.8]} 10... Bg6 {[%clk 0:04:46.2]} 11. Nxg6
{[%clk 0:04:51.9]} 11... hxg6 {[%clk 0:04:46.1]} 12. e4 {[%clk 0:04:50.9]} 12...
dxe4 {[%clk 0:04:42]} 13. Nxe4 {[%clk 0:04:50.8]} 13... Nxe4 {[%clk 0:04:39.7]}
14. Bxe4 {[%clk 0:04:50.7]} 14... Nf6 {[%clk 0:04:37.7]} 15. Bg2 {[%clk
0:04:49.5]} 15... Bb6 {[%clk 0:04:30]} 16. Qd2 {[%clk 0:04:42]} 16... Qd7 {[%clk
0:04:28.3]} 17. Rad1 {[%clk 0:04:41.4]} 17... Rad8 {[%clk 0:04:27.2]} 18. Qf4
{[%clk 0:04:40.4]} 18... Nh5 {[%clk 0:04:14.9]} 19. Qe4 {[%clk 0:04:37.6]} 19...
Nf6 {[%clk 0:04:11.4]} 20. Qe2 {[%clk 0:04:35.4]} 20... Qc7 {[%clk 0:04:02.4]}
21. a3 {[%clk 0:04:29.2]} 21... a5 {[%clk 0:04:00.7]} 22. c5 {[%clk 0:04:27.1]}
22... Ba7 {[%clk 0:03:59.1]} 23. b4 {[%clk 0:04:19.9]} 23... axb4 {[%clk
0:03:57.6]} 24. axb4 {[%clk 0:04:19.3]} 24... Bb8 {[%clk 0:03:55.1]} 25. b5
{[%clk 0:04:17.3]} 25... Nd5 {[%clk 0:03:49.5]} 26. bxc6 {[%clk 0:04:13.7]}
26... bxc6 {[%clk 0:03:46]} 27. Qa6 {[%clk 0:04:11.8]} 27... Ne7 {[%clk
0:03:15]} 28. Bc1 {[%clk 0:04:07.1]} 28... Ba7 {[%clk 0:02:58.7]} 29. Bf4 {[%clk
0:04:04.4]} 1-0

[Event "Live Chess"]
[Site "Chess.com"]
[Date "2024.06.02"]
[Round "-"]
[White "asingardenof"]
[Black "ProfPoisson"]
[Result "0-1"]
[WhiteElo "620"]
[BlackElo "1317"]
[TimeControl "300"]
[EndTime "4:28:55 PDT"]
[Termination "ProfPoisson won by resignation"]

1. d4 {[%clk 0:04:57.3]} 1... e6 {[%clk 0:04:57.3]} 2. c4 {[%clk 0:04:57.2]}
2... f5 {[%clk 0:04:55.2]} 3. Nf3 {[%clk 0:04:57.1]} 3... Nf6 {[%clk 0:04:52.8]}
4. g3 {[%clk 0:04:57]} 4... Bb4+ {[%clk 0:04:47.9]} 5. Nc3 {[%clk 0:04:56.9]}
5... Bxc3+ {[%clk 0:04:46.2]} 6. bxc3 {[%clk 0:04:56.6]} 6... Nc6 {[%clk
0:04:33]} 7. Bg2 {[%clk 0:04:56.5]} 7... Na5 {[%clk 0:04:16.2]} 8. c5 {[%clk
0:04:51.8]} 8... Nd5 {[%clk 0:04:06.8]} 9. Ne5 {[%clk 0:04:49.7]} 9... Nxc3
{[%clk 0:04:04.6]} 10. Qd3 {[%clk 0:04:45.1]} 10... Nd5 {[%clk 0:04:01.5]} 11.
Qf3 {[%clk 0:04:36.2]} 11... O-O {[%clk 0:03:54.9]} 12. Bh3 {[%clk 0:04:18.5]}
12... d6 {[%clk 0:03:52.9]} 13. O-O {[%clk 0:04:17.2]} 13... dxe5 {[%clk
0:03:51]} 14. dxe5 {[%clk 0:04:16.3]} 14... Qe8 {[%clk 0:03:35.7]} 15. Bg5
{[%clk 0:04:03.4]} 15... Nc6 {[%clk 0:03:30.3]} 16. Bf4 {[%clk 0:03:57.4]} 16...
Nd4 {[%clk 0:03:28.3]} 17. Qd3 {[%clk 0:03:51.5]} 17... Nxf4 {[%clk 0:03:25.7]}
18. gxf4 {[%clk 0:03:51.4]} 18... Qg6+ {[%clk 0:03:18.5]} 19. Bg2 {[%clk
0:03:46.8]} 19... Nc6 {[%clk 0:03:11.8]} 20. Kh1 {[%clk 0:03:36.5]} 20... Rd8
{[%clk 0:03:09.1]} 21. Qg3 {[%clk 0:03:28.7]} 21... Qxg3 {[%clk 0:03:06.5]} 22.
fxg3 {[%clk 0:03:28.4]} 22... Rd2 {[%clk 0:02:56.6]} 23. Bf3 {[%clk 0:03:24.7]}
23... Nd4 {[%clk 0:02:54.2]} 24. Rfd1 {[%clk 0:03:18.5]} 24... Nxf3 {[%clk
0:02:51.1]} 25. Rxd2 {[%clk 0:03:16.5]} 25... Nxd2 {[%clk 0:02:48.9]} 26. Rd1
{[%clk 0:03:16.4]} 26... Ne4 {[%clk 0:02:45.6]} 27. Rd8+ {[%clk 0:03:14.9]}
27... Kf7 {[%clk 0:02:44.3]} 28. Rd4 {[%clk 0:03:09.8]} 28... b6 {[%clk
0:02:32.3]} 29. c6 {[%clk 0:03:04.4]} 29... a5 {[%clk 0:02:26.1]} 30. a4 {[%clk
0:03:01.8]} 30... Nc5 {[%clk 0:02:20.9]} 31. Kg2 {[%clk 0:02:56]} 31... Ba6
{[%clk 0:02:18.8]} 32. Kh3 {[%clk 0:02:53.9]} 32... Bxe2 {[%clk 0:02:14.8]} 33.
Rd7+ {[%clk 0:02:45.5]} 33... Nxd7 {[%clk 0:02:11.9]} 34. cxd7 {[%clk
0:02:45.4]} 34... Rd8 {[%clk 0:02:10]} 35. g4 {[%clk 0:02:40.4]} 35... Rxd7
{[%clk 0:02:09.4]} 36. g5 {[%clk 0:02:39.2]} 36... Rd3+ {[%clk 0:02:04.6]} 37.
Kh4 {[%clk 0:02:39.1]} 37... g6 {[%clk 0:02:02.9]} 38. h3 {[%clk 0:02:39]} 38...
Rd2 {[%clk 0:01:53.7]} 39. Kg3 {[%clk 0:02:32.7]} 39... Ra2 {[%clk 0:01:52.4]}
40. Kf2 {[%clk 0:02:30.5]} 40... Bb5+ {[%clk 0:01:46.3]} 41. Ke3 {[%clk
0:02:25]} 41... Bxa4 {[%clk 0:01:46.2]} 42. Kd4 {[%clk 0:02:23.4]} 42... c5+
{[%clk 0:01:44.4]} 43. Kc4 {[%clk 0:02:21.6]} 43... b5+ {[%clk 0:01:38.1]} 0-1

[Event "Live Chess"]
[Site "Chess.com"]
[Date "2024.06.02"]
[Round "-"]
[White "Ferrarifan27"]
[Black "slava_ukr"]
[Result "0-1"]
[WhiteElo "2173"]
[BlackElo "2414"]
[TimeControl "300"]
[EndTime "4:28:57 PDT"]
[Termination "slava_ukr won by resignation"]

1. e4 {[%clk 0:04:58.1]} 1... d5 {[%clk 0:04:58.6]} 2. exd5 {[%clk 0:04:57]}
2... Qxd5 {[%clk 0:04:58.2]} 3. Nc3 {[%clk 0:04:56.5]} 3... Qd6 {[%clk
0:04:57.1]} 4. d4 {[%clk 0:04:55.3]} 4... c6 {[%clk 0:04:56.6]} 5. Nf3 {[%clk
0:04:47.7]} 5... Nf6 {[%clk 0:04:55.9]} 6. Bc4 {[%clk 0:04:44.1]} 6... Be6
{[%clk 0:04:54.6]} 7. Bxe6 {[%clk 0:04:41.7]} 7... Qxe6+ {[%clk 0:04:54.1]} 8.
Qe2 {[%clk 0:04:41]} 8... Qxe2+ {[%clk 0:04:52.7]} 9. Nxe2 {[%clk 0:04:40.9]}
9... Nbd7 {[%clk 0:04:52]} 10. O-O {[%clk 0:04:39.4]} 10... e6 {[%clk
0:04:51.3]} 11. Bf4 {[%clk 0:04:37.8]} 11... Be7 {[%clk 0:04:50.6]} 12. h3
{[%clk 0:04:36.9]} 12... O-O {[%clk 0:04:47.1]} 13. Rfe1 {[%clk 0:04:28.6]}
13... h6 {[%clk 0:04:43]} 14. Rad1 {[%clk 0:04:21.8]} 14... Rfd8 {[%clk
0:04:36.6]} 15. Ng3 {[%clk 0:04:15]} 15... Rac8 {[%clk 0:04:33.8]} 16. c3 {[%clk
0:04:11]} 16... Nd5 {[%clk 0:04:28.5]} 17. Bc1 {[%clk 0:04:08.4]} 17... b5
{[%clk 0:04:16.3]} 18. Ne5 {[%clk 0:04:07]} 18... Nxe5 {[%clk 0:04:15.2]} 19.
Rxe5 {[%clk 0:04:06.9]} 19... Nb6 {[%clk 0:04:07.4]} 20. b3 {[%clk 0:04:05]}
20... c5 {[%clk 0:03:59.3]} 21. Ree1 {[%clk 0:03:53.7]} 21... cxd4 {[%clk
0:03:53.7]} 22. cxd4 {[%clk 0:03:53.6]} 22... Rc2 {[%clk 0:03:48.5]} 23. Re2
{[%clk 0:03:50.3]} 23... Rdc8 {[%clk 0:03:40.7]} 24. Be3 {[%clk 0:03:44.3]}
24... Nd5 {[%clk 0:03:13.4]} 25. Rxc2 {[%clk 0:03:39.2]} 25... Rxc2 {[%clk
0:03:11.8]} 26. Rd2 {[%clk 0:03:38.5]} 26... Nxe3 {[%clk 0:03:06.3]} 27. Rxc2
{[%clk 0:03:34.9]} 27... Nxc2 {[%clk 0:03:05.2]} 0-1

[Event "Live Chess"]
[Site "Chess.com"]
[Date "2024.06.02"]
[Round "-"]
[White "Queensandpawns"]
[Black "ACM42"]
[Result "1-0"]
[WhiteElo "2256"]
[BlackElo "2176"]
[TimeControl "300"]
[EndTime "4:29:07 PDT"]
[Termination "Queensandpawns won on time"]

1. e4 {[%clk 0:04:58.9]} 1... e6 {[%clk 0:04:58.8]} 2. c4 {[%clk 0:04:51.1]}
2... c5 {[%clk 0:04:57.6]} 3. Nc3 {[%clk 0:04:50.4]} 3... Nc6 {[%clk 0:04:56.9]}
4. g3 {[%clk 0:04:49.4]} 4... g6 {[%clk 0:04:56.2]} 5. Bg2 {[%clk 0:04:49.2]}
5... Bg7 {[%clk 0:04:55.7]} 6. Nge2 {[%clk 0:04:49]} 6... Nge7 {[%clk
0:04:55.1]} 7. d3 {[%clk 0:04:48.3]} 7... O-O {[%clk 0:04:54.2]} 8. O-O {[%clk
0:04:48.1]} 8... a6 {[%clk 0:04:52.9]} 9. f4 {[%clk 0:04:41.1]} 9... Rb8 {[%clk
0:04:50.9]} 10. a4 {[%clk 0:04:38.5]} 10... d6 {[%clk 0:04:34.9]} 11. Qe1 {[%clk
0:04:27.3]} 11... Nd4 {[%clk 0:04:18.5]} 12. Nxd4 {[%clk 0:04:18.3]} 12... cxd4
{[%clk 0:04:13.5]} 13. Ne2 {[%clk 0:04:14.6]} 13... a5 {[%clk 0:04:11.4]} 14. g4
{[%clk 0:04:11.8]} 14... d5 {[%clk 0:03:55.3]} 15. cxd5 {[%clk 0:04:09.5]} 15...
exd5 {[%clk 0:03:53.8]} 16. e5 {[%clk 0:04:09.4]} 16... Nc6 {[%clk 0:03:46.1]}
17. Qg3 {[%clk 0:03:55.5]} 17... Qb6 {[%clk 0:03:32.6]} 18. f5 {[%clk
0:03:47.1]} 18... Nxe5 {[%clk 0:03:19.9]} 19. f6 {[%clk 0:03:11.8]} 19... Bxf6
{[%clk 0:03:13]} 20. Bh6 {[%clk 0:03:08.2]} 20... Re8 {[%clk 0:03:08.7]} 21. Qf3
{[%clk 0:03:01.2]} 21... Nxg4 {[%clk 0:02:59.9]} 22. Bf4 {[%clk 0:02:53.4]}
22... Ra8 {[%clk 0:02:16]} 23. h3 {[%clk 0:02:44.3]} 23... Qxb2 {[%clk
0:02:14.5]} 24. Rae1 {[%clk 0:02:33.7]} 24... h5 {[%clk 0:02:12.6]} 25. Bc1
{[%clk 0:02:29.4]} 25... Qb6 {[%clk 0:00:51.9]} 26. hxg4 {[%clk 0:02:26.9]}
26... Bxg4 {[%clk 0:00:49.4]} 27. Qxf6 {[%clk 0:02:24]} 27... Qxf6 {[%clk
0:00:47.6]} 28. Rxf6 {[%clk 0:02:23.9]} 28... Rxe2 {[%clk 0:00:36.7]} 29. Rxe2
{[%clk 0:02:16.4]} 29... Bxe2 {[%clk 0:00:35.7]} 30. Bxd5 {[%clk 0:02:16.3]}
30... Rf8 {[%clk 0:00:34.9]} 31. Bh6 {[%clk 0:01:53.6]} 31... Rd8 {[%clk
0:00:33.1]} 32. Bc4 {[%clk 0:01:42.2]} 32... Rd7 {[%clk 0:00:24.4]} 33. Rxg6+
{[%clk 0:01:36.7]} 33... Kh7 {[%clk 0:00:23.4]} 34. Rf6 {[%clk 0:01:34.4]} 34...
Bg4 {[%clk 0:00:18.1]} 35. Bg5 {[%clk 0:01:30.7]} 35... Kg7 {[%clk 0:00:16]} 36.
Rf4 {[%clk 0:01:24.6]} 36... f5 {[%clk 0:00:12.6]} 37. Bh4 {[%clk 0:01:23.6]}
37... Kg6 {[%clk 0:00:10.8]} 38. Bf2 {[%clk 0:01:21.3]} 38... Re7 {[%clk
0:00:08.6]} 39. Rxd4 {[%clk 0:01:19.4]} 39... Re2 {[%clk 0:00:07.8]} 40. Kf1
{[%clk 0:01:14.9]} 40... Rb2 {[%clk 0:00:05.4]} 41. Rd6+ {[%clk 0:01:14]} 41...
Kg5 {[%clk 0:00:04.4]} 42. Be3+ {[%clk 0:01:13.9]} 42... Kh4 {[%clk 0:00:03.4]}
43. Bf2+ {[%clk 0:01:12.4]} 43... Kh3 {[%clk 0:00:02.5]} 44. Bd5 {[%clk
0:01:10.6]} 44... Rb1+ {[%clk 0:00:01.5]} 45. Be1 {[%clk 0:01:09.9]} 45... f4
{[%clk 0:00:00.4]} 46. Bg2+ {[%clk 0:01:09.8]} 1-0

[Event "Live Chess"]
[Site "Chess.com"]
[Date "2024.06.02"]
[Round "-"]
[White "BishopofWells"]
[Black "KeithArkell"]
[Result "0-1"]
[WhiteElo "1542"]
[BlackElo "2418"]
[TimeControl "300"]
[EndTime "4:29:22 PDT"]
[Termination "KeithArkell won by checkmate"]

1. d4 {[%clk 0:04:55.6]} 1... e6 {[%clk 0:04:58.8]} 2. c4 {[%clk 0:04:53.2]}
2... Bb4+ {[%clk 0:04:57.7]} 3. Bd2 {[%clk 0:04:50.8]} 3... Bxd2+ {[%clk
0:04:56.7]} 4. Nxd2 {[%clk 0:04:48.8]} 4... Nf6 {[%clk 0:04:56.5]} 5. e4 {[%clk
0:04:47.7]} 5... d6 {[%clk 0:04:56]} 6. Ngf3 {[%clk 0:04:36.5]} 6... Qe7 {[%clk
0:04:53.3]} 7. Be2 {[%clk 0:04:33.3]} 7... e5 {[%clk 0:04:51.9]} 8. d5 {[%clk
0:04:25.8]} 8... a5 {[%clk 0:04:48.1]} 9. O-O {[%clk 0:04:23.1]} 9... Bg4 {[%clk
0:04:47.2]} 10. h3 {[%clk 0:04:21.3]} 10... Bxf3 {[%clk 0:04:45.8]} 11. Nxf3
{[%clk 0:04:19.2]} 11... Nbd7 {[%clk 0:04:45.4]} 12. Qb3 {[%clk 0:04:17.5]}
12... Nc5 {[%clk 0:04:44.1]} 13. Qc2 {[%clk 0:04:06]} 13... Nfxe4 {[%clk
0:04:42.2]} 14. Nd2 {[%clk 0:03:59.9]} 14... Nxd2 {[%clk 0:04:40.8]} 15. Qxd2
{[%clk 0:03:58.4]} 15... O-O {[%clk 0:04:40]} 16. a3 {[%clk 0:03:50.9]} 16... a4
{[%clk 0:04:38.8]} 17. Bd1 {[%clk 0:03:45.4]} 17... h6 {[%clk 0:04:35.5]} 18.
Bc2 {[%clk 0:03:44.1]} 18... Qg5 {[%clk 0:04:34]} 19. Qe2 {[%clk 0:03:37.8]}
19... f5 {[%clk 0:04:30.6]} 20. Rab1 {[%clk 0:03:31.2]} 20... f4 {[%clk
0:03:57.2]} 21. Qf3 {[%clk 0:03:20.2]} 21... Rae8 {[%clk 0:03:52.1]} 22. Rfe1
{[%clk 0:03:19.1]} 22... Re7 {[%clk 0:03:47.9]} 23. Be4 {[%clk 0:03:05.5]} 23...
b6 {[%clk 0:03:40.5]} 24. Kh1 {[%clk 0:02:47.5]} 24... g6 {[%clk 0:03:39.4]} 25.
Rg1 {[%clk 0:02:41.5]} 25... Kg7 {[%clk 0:03:37.9]} 26. Qe2 {[%clk 0:02:31.3]}
26... Nxe4 {[%clk 0:03:29.4]} 27. Qxe4 {[%clk 0:02:29.9]} 27... Qf5 {[%clk
0:03:28.1]} 28. Qe2 {[%clk 0:02:20.3]} 28... e4 {[%clk 0:03:26.7]} 29. Rbe1
{[%clk 0:02:00.6]} 29... f3 {[%clk 0:03:23.9]} 30. gxf3 {[%clk 0:01:55.5]} 30...
Qxh3# {[%clk 0:03:21.5]} 0-1

[Event "Live Chess"]
[Site "Chess.com"]
[Date "2024.06.02"]
[Round "-"]
[White "Isambard_Thomas"]
[Black "Kyrylo7770"]
[Result "1-0"]
[WhiteElo "2201"]
[BlackElo "1649"]
[TimeControl "300"]
[EndTime "4:29:30 PDT"]
[Termination "Isambard_Thomas won by resignation"]

1. d4 {[%clk 0:04:55.6]} 1... d5 {[%clk 0:04:58.7]} 2. Nf3 {[%clk 0:04:55.3]}
2... Bg4 {[%clk 0:04:57.8]} 3. Bg5 {[%clk 0:04:54.7]} 3... h6 {[%clk 0:04:56.8]}
4. Bh4 {[%clk 0:04:53.4]} 4... g5 {[%clk 0:04:56.5]} 5. Bg3 {[%clk 0:04:52.4]}
5... e6 {[%clk 0:04:56.3]} 6. e3 {[%clk 0:04:51.7]} 6... Nf6 {[%clk 0:04:55.5]}
7. Bd3 {[%clk 0:04:50.8]} 7... Bd6 {[%clk 0:04:54.3]} 8. Nbd2 {[%clk 0:04:48.3]}
8... Nc6 {[%clk 0:04:53]} 9. c3 {[%clk 0:04:47.3]} 9... Ne4 {[%clk 0:04:46.1]}
10. Qc2 {[%clk 0:04:46]} 10... Bxg3 {[%clk 0:04:40.2]} 11. hxg3 {[%clk
0:04:43.6]} 11... Nxd2 {[%clk 0:04:30.1]} 12. Nxd2 {[%clk 0:04:38.5]} 12... Qf6
{[%clk 0:04:29.3]} 13. Nb3 {[%clk 0:04:30.4]} 13... Ne7 {[%clk 0:04:23.3]} 14.
Nc5 {[%clk 0:04:27.1]} 14... O-O-O {[%clk 0:04:21.1]} 15. Qb3 {[%clk 0:04:21.6]}
15... b6 {[%clk 0:04:19.1]} 16. Ba6+ {[%clk 0:03:12.6]} 16... Kb8 {[%clk
0:04:17]} 17. Nd3 {[%clk 0:03:04.3]} 17... Bf5 {[%clk 0:04:11.5]} 18. Nb4 {[%clk
0:03:00.5]} 18... Be4 {[%clk 0:04:05]} 19. Qa4 {[%clk 0:02:51.2]} 19... Bxg2
{[%clk 0:04:01.2]} 20. Nc6+ {[%clk 0:02:49.8]} 20... Nxc6 {[%clk 0:03:59.8]} 21.
Qxc6 {[%clk 0:02:48.5]} 1-0